bitfinex-derivatives/quotes_BNBF0:USTF0_20250509
["timestamp","ask_amount","ask_price","bid_price","bid_amount"]
[1746826617421,0.2601646,640.7,639.31,0.71283727]
[1746826617722,0.2601646,640.69,639.31,0.71283727]
[1746826618121,0.2601646,640.68,639.31,0.71283727]
[1746826618621,0.2601646,640.67,639.31,0.71283727]
[1746826618821,0.53206297,640.67,639.31,0.71283727]
[1746826619021,0.2601646,640.66,639.31,0.71283727]
[1746826620823,0.27189837,640.67,639.31,0.71283727]
[1746826622123,0.26018219,640.66,639.31,0.71283727]
[1746826624123,0.26018219,640.65,639.31,0.71283727]
[1746826624624,0.26018219,640.64,639.31,0.71283727]
[1746826624826,0.26018219,640.63,639.31,0.71283727]
[1746826625221,0.84018219,640.62,639.31,0.71283727]
[1746826625621,0.26018219,640.61,639.31,0.71283727]
[1746826627723,0.27194086,640.6,639.31,0.71283727]
[1746826628026,0.26018219,640.59,639.31,0.71283727]
[1746826630727,0.27194086,640.58,639.31,0.71283727]
[1746826631221,0.26018219,640.57,639.31,0.71283727]
[1746826633827,0.27194511,640.56,639.31,0.71283727]
[1746826634027,0.26018219,640.55,639.31,0.71283727]
[1746826636928,0.27194936,640.54,639.31,0.71283727]
[1746826637231,0.26019802,640.53,639.31,0.71283727]
[1746826639729,0.27194936,640.52,639.31,0.71283727]
[1746826640130,0.26019802,640.51,639.31,0.71283727]
[1746826641832,0.27194936,640.52,639.31,0.71283727]
[1746826642130,0.26019662,640.51,639.31,0.71283727]
[1746826644435,0.26019662,640.5,639.31,0.71283727]
[1746826644735,0.26019662,640.51,639.31,0.71283727]
[1746826645735,0.27193555,640.5,639.31,0.71283727]
[1746826645941,0.57893555,640.5,639.31,0.71283727]
[1746826646236,0.26019662,640.49,639.31,0.71283727]
[1746826651741,0.27196211,640.48,639.31,0.71283727]
[1746826652242,0.26019639,640.47,639.31,0.71283727]
[1746826654743,0.27196211,640.46,639.31,0.71283727]
[1746826655141,0.26019639,640.45,639.31,0.71283727]
[1746826657744,0.27193236,640.44,639.31,0.71283727]
[1746826658346,0.26019639,640.43,639.31,0.71283727]
[1746826660749,0.27191749,640.42,639.31,0.71283727]
[1746826661050,0.57419639,640.41,639.31,0.71283727]
[1746826661553,0.26019639,640.4,639.31,0.71283727]
[1746826662555,0.314,640.41,639.31,0.71283727]
[1746826663051,0.2601985,640.4,639.31,0.71283727]
[1746826663951,0.27197168,640.39,639.31,0.71283727]
[1746826664348,0.2601985,640.38,639.31,0.71283727]
[1746826666956,0.27197168,640.37,639.31,0.71283727]
[1746826667551,0.2601985,640.36,639.31,0.71283727]
[1746826671860,0.2601985,640.36,639.32,0.53141579]
[1746826672059,0.2601985,640.36,639.34,0.31282259]
[1746826672459,0.2601985,640.36,639.35,0.53141579]
[1746826672659,0.2601985,640.36,639.37,0.31280792]
[1746826672859,0.27198337,640.35,639.37,0.31280792]
[1746826673056,0.27198337,640.35,639.38,0.53141579]
[1746826673256,0.2601985,640.34,639.4,0.31279324]
[1746826673459,0.2601985,640.34,639.41,0.53141579]
[1746826673659,0.2601985,640.34,639.43,0.31277856]
[1746826674157,0.2601985,640.34,639.44,0.53141579]
[1746826674361,0.2601985,640.34,639.46,0.31276389]
[1746826674556,0.2601985,640.34,639.47,0.53141579]
[1746826674760,0.2601985,640.34,639.49,0.31274922]
[1746826675361,0.2601985,640.34,639.5,0.53141579]
[1746826675561,0.2601985,640.34,639.52,0.31273455]
[1746826675860,0.2601985,640.4,639.52,0.31273455]
[1746826676062,0.27197168,640.33,639.52,0.31273455]
[1746826676661,0.2601985,640.32,639.52,0.31273455]
[1746826678769,0.27197168,640.31,639.52,0.31273455]
[1746826679159,0.2601985,640.3,639.52,0.31273455]
[1746826681771,0.27197168,640.29,639.52,0.31273455]
[1746826682472,0.2601985,640.28,639.52,0.31273455]
[1746826684772,0.27198231,640.27,639.52,0.31273455]
[1746826684971,0.2601985,640.26,639.52,0.31273455]
[1746826686568,0.27198231,640.27,639.52,0.31273455]
[1746826686975,0.26024816,640.26,639.52,0.31273455]
[1746826687876,0.27198231,640.25,639.52,0.31273455]
[1746826688175,0.26024816,640.24,639.52,0.31273455]
[1746826690971,0.27191961,640.23,639.52,0.31273455]
[1746826691776,0.26024816,640.22,639.52,0.31273455]
[1746826693078,0.373,640.21,639.52,0.31273455]
[1746826693477,0.26024816,640.2,639.52,0.31273455]
[1746826693877,0.53225172,640.2,639.52,0.31273455]
[1746826694177,0.26024816,640.19,639.52,0.31273455]
[1746826696173,0.27200356,640.2,639.52,0.31273455]
[1746826696571,0.26024852,640.19,639.52,0.31273455]
[1746826696971,0.53225208,640.2,639.52,0.31273455]
[1746826697979,0.26024852,640.19,639.52,0.31273455]
[1746826699777,0.26024852,640.2,639.52,0.31273455]
[1746826699981,0.27203121,640.18,639.52,0.31273455]
[1746826700479,0.26024852,640.17,639.52,0.31273455]
[1746826701279,0.27203121,640.18,639.52,0.31273455]
[1746826701781,0.26029526,640.17,639.52,0.31273455]
[1746826702780,0.27203333,640.16,639.52,0.31273455]
[1746826703280,0.26029526,640.15,639.52,0.31273455]
[1746826708783,0.27203333,640.14,639.52,0.31273455]
[1746826708982,0.26029526,640.13,639.52,0.31273455]
[1746826711182,0.27203333,640.14,639.52,0.31273455]
[1746826711380,0.26031261,640.13,639.52,0.31273455]
[1746826712985,0.463,640.12,639.52,0.31273455]
[1746826713585,0.26031261,640.11,639.52,0.31273455]
[1746826714384,0.26031261,640.1,639.52,0.31273455]
[1746826714778,0.53237784,640.09,639.52,0.31273455]
[1746826714979,0.53237784,640.09,639.52,0.73073455]
[1746826715386,0.26031261,640.08,639.52,0.73073455]
[1746826716186,0.26031261,640.07,639.52,0.73073455]
[1746826716587,0.26031261,640.06,639.52,0.73073455]
[1746826716787,0.26031261,640.05,639.52,0.73073455]
[1746826717187,0.26031261,640.08,639.52,0.73073455]
[1746826717487,0.26031261,640.07,639.52,0.73073455]
[1746826717790,0.26031261,640.06,639.52,0.73073455]
[1746826718286,0.26031261,640.05,639.52,0.73073455]
[1746826718790,0.26031261,640.04,639.52,0.73073455]
[1746826719088,0.26031261,640.06,639.52,0.73073455]
[1746826720784,0.53234594,640.06,639.52,0.73073455]
[1746826720983,0.27203333,640.06,639.52,0.73073455]
[1746826721186,0.26031261,640.05,639.52,0.73073455]
[1746826722690,0.27203333,640.06,639.52,0.73073455]
[1746826722889,0.26032169,640.05,639.52,0.73073455]
[1746826723991,0.27203333,640.06,639.52,0.73073455]
[1746826724286,0.26032169,640.05,639.52,0.73073455]
[1746826725794,0.27203333,640.06,639.52,0.73073455]
[1746826726187,0.26032391,640.05,639.52,0.73073455]
[1746826729795,0.27203333,640.06,639.52,0.73073455]
[1746826730294,0.26032391,640.05,639.52,0.73073455]
[1746826731192,0.26032391,640.05,639.52,0.418]
[1746826732690,0.26032391,640.11,639.52,0.418]
[1746826732988,0.27206523,640.06,639.52,0.418]
[1746826733693,0.26032391,640.05,639.52,0.418]
[1746826735891,0.26032391,640.11,639.52,0.418]
[1746826736094,0.27206523,640.06,639.52,0.418]
[1746826736894,0.26032391,640.05,639.52,0.418]
[1746826740697,0.64232391,640.05,639.52,0.418]
[1746826741198,0.26032391,640.04,639.52,0.418]
[1746826743299,0.382,640.05,639.52,0.418]
[1746826744503,0.26032514,640.04,639.52,0.418]
[1746826745803,0.382,640.05,639.52,0.418]
[1746826746203,0.26032604,640.04,639.52,0.418]
[1746826768815,0.382,640.05,639.52,0.418]
[1746826769116,0.260282,640.04,639.52,0.418]
[1746826788525,0.382,640.05,639.52,0.418]
[1746826789130,0.26028422,640.04,639.52,0.418]
[1746826800539,0.382,640.05,639.52,0.418]
[1746826851068,0.382,640.05,639.53,0.31272966]
[1746826851472,0.27182722,640.75,639.53,0.31272966]
[1746826852175,0.26002871,640.74,639.53,0.31272966]
[1746826852870,0.27179643,640.73,639.53,0.31272966]
[1746826853374,0.26002904,640.72,639.53,0.31272966]
[1746826854375,0.448,640.71,639.53,0.68372966]
[1746826854871,0.26002904,640.7,639.53,0.68372966]
[1746826861177,0.71983146,640.71,639.53,0.68372966]
[1746826861572,0.26003071,640.7,639.53,0.68372966]
[1746826862978,0.71983146,640.71,639.53,0.68372966]
[1746826863278,0.26003116,640.7,639.53,0.68372966]
[1746826864778,0.448,640.71,639.53,0.68372966]
[1746826864977,0.71983146,640.71,639.53,0.68372966]
[1746826865178,0.26003077,640.7,639.53,0.68372966]
[1746826866181,0.71983146,640.71,639.53,0.68372966]
[1746826866576,0.26003028,640.7,639.53,0.68372966]
[1746826870878,0.27185695,640.69,639.53,0.68372966]
[1746826871082,0.26003028,640.68,639.53,0.68372966]
[1746826873879,0.27186969,640.67,639.53,0.68372966]
[1746826874083,0.58404288,640.67,639.53,0.68372966]
[1746826874885,0.26003028,640.66,639.53,0.68372966]
[1746826875081,0.26003028,640.66,639.54,0.52373993]
[1746826875681,0.26003028,640.66,639.55,0.52373993]
[1746826876481,0.26003028,640.66,639.56,0.52373993]
[1746826877086,0.27187394,640.65,639.57,0.52373993]
[1746826877487,0.26003028,640.64,639.57,0.52373993]
[1746826877681,0.26003028,640.64,639.58,0.52373993]
[1746826878186,0.26003028,640.64,639.59,0.52373993]
[1746826878487,0.26003028,640.64,639.6,0.52373993]
[1746826878689,0.59,640.63,639.6,0.52373993]
[1746826878988,0.59,640.63,639.61,0.52373993]
[1746826879191,0.26003028,640.62,639.61,0.52373993]
[1746826879488,0.26003028,640.62,639.62,0.52373993]
[1746826879889,0.27187819,640.61,639.62,0.52373993]
[1746826880390,0.26006894,640.6,639.63,0.52373993]
[1746826880889,0.26006894,640.6,639.64,0.52373993]
[1746826881494,0.26006894,640.6,639.65,0.52373993]
[1746826881691,0.26006894,640.6,639.66,0.52373993]
[1746826882691,0.26006894,640.6,639.67,0.52373993]
[1746826882890,0.27187819,640.59,639.67,0.52373993]
[1746826883093,0.26006894,640.58,639.68,0.52373993]
[1746826883688,0.26006894,640.58,639.69,0.52373993]
[1746826884395,0.26006894,640.58,639.7,0.52373993]
[1746826884791,0.26006894,640.58,639.71,0.52373993]
[1746826885395,0.26006894,640.58,639.72,0.52373993]
[1746826885789,0.26006894,640.62,639.72,0.52373993]
[1746826886090,0.27186226,640.57,639.73,0.52373993]
[1746826886490,0.26006894,640.56,639.73,0.52373993]
[1746826886695,0.26006894,640.56,639.74,0.52373993]
[1746826887398,0.26006894,640.56,639.75,0.52373993]
[1746826887994,0.26006894,640.56,639.68,0.386]
[1746826888197,0.26006894,640.56,639.69,0.52386833]
[1746826888593,0.26006894,640.56,639.7,0.52386833]
[1746826888899,0.26006894,640.62,639.7,0.52386833]
[1746826889091,0.27186226,640.55,639.7,0.52386833]
[1746826889297,0.26006894,640.54,639.7,0.52386833]
[1746826889595,0.26006894,640.54,639.71,0.52386833]
[1746826890196,0.26006894,640.54,639.72,0.52386833]
[1746826890896,0.26006894,640.54,639.73,0.52386833]
[1746826891294,0.26006894,640.54,639.68,0.386]
[1746826891799,0.26006894,640.54,639.69,0.52358245]
[1746826892096,0.27187819,640.53,639.69,0.52358245]
[1746826892601,0.26006894,640.52,639.69,0.52358245]
[1746826892900,0.26006894,640.52,639.7,0.52358245]
[1746826893300,0.26006894,640.52,639.71,0.52358245]
[1746826893703,0.26006894,640.52,639.68,0.386]
[1746826894298,0.26006894,640.52,639.69,0.52334587]
[1746826895104,0.27186226,640.53,639.7,0.52334587]
[1746826895398,0.27186226,640.53,639.71,0.52334587]
[1746826895602,0.26006894,640.52,639.71,0.52334587]
[1746826895898,0.26006894,640.52,639.72,0.52334587]
[1746826896604,0.26006894,640.52,639.73,0.52334587]
[1746826897203,0.26006894,640.52,639.74,0.52334587]
[1746826897605,0.26006894,640.52,639.75,0.52334587]
[1746826897906,0.27184951,640.59,639.75,0.52334587]
[1746826898105,0.26006894,640.58,639.76,0.52334587]
[1746826898400,0.26006894,640.58,639.77,0.52334587]
[1746826899003,0.26006894,640.58,639.78,0.52334587]
[1746826899306,0.26006894,640.58,639.68,0.386]
[1746826899606,0.26006894,640.58,639.69,0.52309884]
[1746826900202,0.26006894,640.58,639.7,0.52309884]
[1746826900607,0.26006894,640.58,639.71,0.52309884]
[1746826900906,0.26006894,640.58,639.72,0.52309884]
[1746826901107,0.26006894,640.58,639.73,0.52309884]
[1746826901709,0.26006894,640.58,639.74,0.52309884]
[1746826902209,0.26006894,640.58,639.75,0.52309884]
[1746826902706,0.71606894,640.58,639.76,0.52309884]
[1746826902905,0.26006894,640.57,639.76,0.52309884]
[1746826903106,0.26006894,640.57,639.77,0.52309884]
[1746826904711,0.26006894,640.57,639.68,0.386]
[1746826905315,0.26006894,640.57,639.69,0.51747125]
[1746826905611,0.26006894,640.57,639.7,0.51747125]
[1746826905811,0.26006894,640.57,639.71,0.51747125]
[1746826906116,0.26006894,640.57,639.72,0.51747125]
[1746826906416,0.26006894,640.57,639.54,0.27185482]
[1746826906615,0.26006894,640.57,639.53,0.31272966]
[1746826906816,0.26006894,640.57,639.54,0.5176192]
[1746826907011,0.27188562,640.56,639.55,0.5176192]
[1746826907214,0.26006894,640.55,639.55,0.5176192]
[1746826907411,0.26006894,640.55,639.56,0.5176192]
[1746826907611,0.26006894,640.55,639.57,0.5176192]
[1746826908216,0.27188562,640.56,639.58,0.5176192]
[1746826908417,0.2601052,640.55,639.58,0.9626192]
[1746826908619,0.2601052,640.55,639.59,0.5176192]
[1746826908814,0.2601052,640.55,639.6,0.5176192]
[1746826909017,0.2601052,640.55,639.61,0.5176192]
[1746826909211,0.2601052,640.55,639.62,0.5176192]
[1746826909916,0.27188031,640.54,639.63,0.5176192]
[1746826910111,0.2601052,640.53,639.63,0.5176192]
[1746826910721,0.2601052,640.53,639.64,0.5176192]
[1746826911320,0.2601052,640.53,639.65,0.5176192]
[1746826911813,0.2601052,640.53,639.66,0.5176192]
[1746826912417,0.27188031,640.54,639.67,0.5176192]
[1746826912617,0.456,640.58,639.67,0.5176192]
[1746826912917,0.27189093,640.53,639.67,0.5176192]
[1746826913212,0.27189093,640.53,639.68,0.5176192]
[1746826913518,0.27189093,640.53,639.69,0.5176192]
[1746826914114,0.27189093,640.53,639.7,0.5176192]
[1746826914818,0.27189093,640.53,639.58,0.445]
[1746826915518,0.27189093,640.53,639.59,0.51749853]
[1746826915718,0.456,640.58,639.6,0.51749853]
[1746826915920,0.53200611,640.52,639.6,0.51749853]
[1746826916119,0.26010987,640.51,639.6,0.51749853]
[1746826916318,0.26010987,640.51,639.61,0.51749853]
[1746826916914,0.26010987,640.51,639.62,0.51749853]
[1746826917414,0.26010987,640.51,639.63,0.51749853]
[1746826917815,0.26010987,640.51,639.58,0.445]
[1746826917816,0.26010987,640.51,639.64,0.51749853]
[1746826918316,0.26010987,640.51,639.65,0.51749853]
[1746826918920,0.79688137,640.5,639.65,0.51749853]
[1746826919119,0.26010987,640.49,639.66,0.51749853]
[1746826919521,0.26010987,640.49,639.58,0.445]
[1746826920124,0.26010987,640.49,639.59,0.51764615]
[1746826920617,0.26010987,640.49,639.6,0.51764615]
[1746826921122,0.26010987,640.49,639.61,0.51764615]
[1746826921523,0.26010987,640.49,639.62,0.51764615]
[1746826921922,0.26010987,640.49,639.63,0.51764615]
[1746826922119,0.27189943,640.48,639.63,0.51764615]
[1746826922324,0.26010987,640.47,639.64,0.51764615]
[1746826922931,0.27189943,640.48,639.64,0.51764615]
[1746826923224,0.27189943,640.48,639.65,0.51764615]
[1746826923529,0.2601225,640.47,639.65,0.51764615]
[1746826923828,0.2601225,640.47,639.58,0.445]
[1746826923829,0.2601225,640.47,639.66,0.51764615]
[1746826924530,0.2601225,640.47,639.58,0.445]
[1746826925025,0.53202193,640.47,639.59,0.51808975]
[1746826925324,0.53202193,640.47,639.6,0.51808975]
[1746826925925,0.53202193,640.47,639.61,0.51808975]
[1746826926228,0.53202193,640.47,639.62,0.51808975]
[1746826926429,0.2601225,640.46,639.62,0.51808975]
[1746826926829,0.2601225,640.46,639.63,0.51808975]
[1746826927429,0.2601225,640.46,639.64,0.51808975]
[1746826927829,0.2601225,640.46,639.65,0.51808975]
[1746826928428,0.2601225,640.46,639.66,0.51808975]
[1746826928829,0.2601225,640.46,639.58,0.445]
[1746826929130,0.2601225,640.46,639.59,0.51862033]
[1746826929527,0.2601225,640.46,639.6,0.51862033]
[1746826930126,0.2601225,640.46,639.61,0.51862033]
[1746826930830,0.525,640.5,639.62,0.51862033]
[1746826931030,0.27190155,640.46,639.62,0.51862033]
[1746826931430,0.27190155,640.46,639.63,0.51862033]
[1746826931631,0.26012309,640.45,639.63,0.51862033]
[1746826931933,0.26012309,640.45,639.64,0.51862033]
[1746826932427,0.26012309,640.45,639.65,0.51862033]
[1746826932931,0.26012309,640.45,639.66,0.51862033]
[1746826933332,0.26012309,640.45,639.58,0.445]
[1746826933932,0.27191536,640.44,639.58,0.445]
[1746826934133,0.27191536,640.44,639.59,0.51900794]
[1746826934434,0.26012309,640.43,639.6,0.51900794]
[1746826934626,0.26012309,640.43,639.61,0.51900794]
[1746826935634,0.26012309,640.43,639.62,0.51900794]
[1746826936630,0.26012309,640.43,639.53,0.31272966]
[1746826936934,0.27191005,640.42,639.53,0.31272966]
[1746826937130,0.26012309,640.41,639.54,0.51884235]
[1746826937746,0.26012309,640.41,639.55,0.51884235]
[1746826938036,0.26012309,640.41,639.56,0.51884235]
[1746826938335,0.26012309,640.41,639.57,0.51884235]
[1746826938737,0.26012309,640.41,639.58,0.359]
[1746826938936,0.26012309,640.41,639.59,0.51884235]
[1746826939438,0.26012309,640.41,639.6,0.51884235]
[1746826939937,0.26012309,640.49,639.6,0.51884235]
[1746826940233,0.27191005,640.42,639.61,0.51884235]
[1746826940637,0.26012309,640.41,639.61,0.51884235]
[1746826940840,0.26012309,640.41,639.62,0.51884235]
[1746826941638,0.26012309,640.41,639.58,0.359]
[1746826942135,0.26012309,640.41,639.59,0.51899117]
[1746826942839,0.26012309,640.41,639.6,0.51899117]
[1746826943241,0.26012309,640.4,639.6,0.51899117]
[1746826943440,0.26012309,640.4,639.58,0.359]
[1746826943441,0.26012309,640.4,639.61,0.51899117]
[1746826943736,0.26012309,640.39,639.61,0.51899117]
[1746826943938,0.26012309,640.39,639.58,0.359]
[1746826944136,0.26012309,640.41,639.58,0.359]
[1746826944340,0.599,640.4,639.58,0.359]
[1746826944538,0.85912309,640.4,639.59,0.51795162]
[1746826944844,0.85912309,640.4,639.6,0.51795162]
[1746826945038,0.26012309,640.39,639.6,0.51795162]
[1746826945342,0.26012309,640.39,639.58,0.359]
[1746826945343,0.26012309,640.39,639.61,0.51795162]
[1746826945741,0.26012309,640.39,639.62,0.51795162]
[1746826945944,0.599,640.4,639.62,0.51795162]
[1746826946442,0.26014899,640.39,639.62,0.51795162]
[1746826946641,0.26014899,640.39,639.58,0.359]
[1746826947343,0.26014899,640.39,639.59,0.51121313]
[1746826947742,0.599,640.4,639.59,0.51121313]
[1746826948046,0.26014946,640.39,639.6,0.51121313]
[1746826948344,0.26014946,640.39,639.61,0.51121313]
[1746826948545,0.599,640.4,639.61,0.51121313]
[1746826948947,0.599,640.4,639.58,0.359]
[1746826949447,0.26014997,640.39,639.59,0.51128079]
[1746826950247,0.26014997,640.39,639.6,0.51128079]
[1746826950645,0.26014997,640.39,639.53,0.31272966]
[1746826951049,0.26014997,640.39,639.54,0.51148369]
[1746826951546,0.26014997,640.39,639.55,0.51148369]
[1746826951949,0.27196636,640.38,639.55,0.51148369]
[1746826952149,0.26014997,640.37,639.55,0.51148369]
[1746826952345,0.26014997,640.37,639.54,0.476]
[1746826955053,0.599,640.4,639.54,0.476]
[1746826955347,0.27208438,640.36,639.54,0.476]
[1746826956454,0.26019704,640.35,639.54,0.476]
[1746826961460,0.344,640.34,639.54,0.476]
[1746826961961,0.26019704,640.33,639.54,0.476]
[1746826963963,0.27210352,640.32,639.54,0.476]
[1746826964161,0.26019704,640.31,639.54,0.476]
[1746826965663,0.27210352,640.32,639.54,0.476]
[1746826966063,0.26019015,640.31,639.54,0.476]
[1746826966962,0.27210565,640.3,639.54,0.476]
[1746826967564,0.26019015,640.29,639.54,0.476]
[1746826970265,0.27210565,640.28,639.54,0.476]
[1746826970661,0.26019015,640.27,639.54,0.476]
[1746826972961,0.26019015,640.33,639.54,0.476]
[1746826973166,0.27207055,640.26,639.54,0.476]
[1746826973766,0.26019015,640.25,639.54,0.476]
[1746826979070,0.27208225,640.26,639.54,0.476]
[1746826979470,0.26019015,640.25,639.54,0.476]
[1746826982371,0.27204609,640.26,639.54,0.476]
[1746826982772,0.26019015,640.25,639.54,0.476]
[1746826984876,0.26019015,640.54,639.54,0.476]
[1746826985074,0.27204715,640.26,639.54,0.476]
[1746826985374,0.78224142,640.53,639.54,0.476]
[1746826985673,0.27204928,640.26,639.54,0.476]
[1746826985876,0.57243644,640.52,639.54,0.476]
[1746826986074,0.27205034,640.26,639.54,0.476]
[1746826986273,0.26019015,640.25,639.54,0.476]
[1746826986975,0.27207906,640.26,639.54,0.476]
[1746826987277,0.26019015,640.25,639.54,0.476]
[1746826988176,0.27207906,640.26,639.54,0.476]
[1746826988376,0.26019015,640.24,639.54,0.476]
[1746826988575,0.26019015,640.25,639.54,0.476]
[1746826991175,0.272078,640.26,639.54,0.476]
[1746826991578,0.26019015,640.25,639.54,0.476]
[1746826993980,0.26019015,640.5,639.54,0.476]
[1746826994181,0.27208544,640.26,639.54,0.476]
[1746826994480,0.31226092,640.49,639.54,0.476]
[1746826994681,0.26019015,640.25,639.54,0.476]
[1746826995382,0.27208757,640.26,639.54,0.476]
[1746826995582,0.26019015,640.25,639.54,0.476]
[1746826997081,0.27207587,640.26,639.54,0.476]
[1746826997483,0.26019015,640.25,639.54,0.476]
[1746826999879,0.27207161,640.26,639.54,0.476]
[1746827000183,0.26019015,640.25,639.54,0.476]
[1746827004390,0.27207693,640.26,639.54,0.476]
[1746827004684,0.26021784,640.25,639.54,0.476]
[1746827005985,0.27206949,640.26,639.54,0.476]
[1746827006488,0.26021784,640.25,639.54,0.476]
[1746827008489,0.27206949,640.26,639.54,0.476]
[1746827008690,0.31226092,640.49,639.54,0.476]
[1746827008990,0.26021723,640.25,639.54,0.476]
[1746827009384,0.26021723,640.48,639.54,0.476]
[1746827009589,0.27207374,640.26,639.54,0.476]
[1746827009790,0.26021723,640.48,639.54,0.476]
[1746827010086,0.2720865,640.26,639.54,0.476]
[1746827010390,0.26021723,640.25,639.54,0.476]
[1746827010586,0.436,640.24,639.54,0.476]
[1746827010993,0.26021723,640.23,639.54,0.476]
[1746827031004,0.436,640.24,639.54,0.476]
[1746827034304,0.26016677,640.23,639.54,0.476]
[1746827037907,0.26016677,640.33,639.54,0.476]
[1746827038905,0.31226092,640.49,639.54,0.476]
[1746827039209,0.27207374,640.34,639.54,0.476]
[1746827039409,0.26018471,640.48,639.54,0.476]
[1746827039608,0.26018471,640.33,639.54,0.476]
[1746827039810,0.27207374,640.34,639.54,0.476]
[1746827040011,0.26018471,640.48,639.54,0.476]
[1746827040204,0.361,640.33,639.54,0.476]
[1746827040405,0.62118471,640.33,639.54,0.476]
[1746827040611,0.26018471,640.32,639.54,0.476]
[1746827045114,0.361,640.33,639.54,0.476]
[1746827045409,0.2601729,640.32,639.54,0.476]
[1746827051714,0.2601729,640.44,639.54,0.476]
[1746827054320,0.27204184,640.45,639.54,0.476]
[1746827054720,0.2601729,640.44,639.54,0.476]
[1746827055320,0.8511729,640.44,639.54,0.476]
[1746827055921,0.2601729,640.43,639.54,0.476]
[1746827068729,0.2601729,640.44,639.54,0.476]
[1746827069234,0.27201845,640.45,639.54,0.476]
[1746827069435,0.2601729,640.44,639.54,0.476]
[1746827071036,0.9551729,640.44,639.54,0.476]
[1746827071330,0.2601729,640.43,639.54,0.476]
[1746827073235,0.695,640.44,639.54,0.476]
[1746827073535,0.26011701,640.43,639.54,0.476]
[1746827080836,0.695,640.44,639.54,0.476]
[1746827081239,0.26012419,640.43,639.54,0.476]
[1746827082140,0.695,640.44,639.54,0.476]
[1746827082636,0.26013303,640.43,639.54,0.476]
[1746827086544,0.695,640.44,639.54,0.476]
[1746827087043,0.26015933,640.43,639.54,0.476]
[1746827088647,0.26015933,640.44,639.54,0.476]
[1746827089448,0.26015933,640.43,639.54,0.476]
[1746827089944,0.27200144,640.45,639.54,0.476]
[1746827090348,0.26015933,640.44,639.54,0.476]
[1746827090747,0.26015933,640.43,639.54,0.476]
[1746827091051,0.26015933,640.42,639.54,0.476]
[1746827091444,0.26015933,640.44,639.54,0.476]
[1746827091645,0.6,640.41,639.54,0.476]
[1746827092046,0.26015933,640.4,639.54,0.476]
[1746827108167,0.26015933,640.4,639.41,0.2719313]
[1746827108466,0.26015933,640.44,639.41,0.2719313]
[1746827110670,0.26015933,640.44,638.9,0.444]
[1746827110867,0.26015933,640.44,638.92,0.31302823]
[1746827111065,0.27198124,640.43,639.41,0.27198124]
[1746827111270,0.26015933,640.42,638.92,0.31302823]
[1746827112966,0.26015933,640.42,638.93,0.27200888]
[1746827113169,0.26015933,640.42,638.95,0.31301353]
[1746827113870,0.26015933,640.48,638.95,0.31301353]
[1746827114670,0.26015933,640.47,638.96,0.287321]
[1746827114970,0.26015933,640.46,638.98,0.31299884]
[1746827115270,0.26015933,640.45,638.98,0.31299884]
[1746827115566,0.27200463,640.47,638.99,0.2873207]
[1746827115567,0.26015933,640.44,638.99,0.2873207]
[1746827115772,0.26015933,640.44,639.01,0.31298414]
[1746827116567,0.26015933,640.43,639.01,0.31298414]
[1746827116971,0.53215864,640.42,639.02,0.2873207]
[1746827117168,0.53215864,640.42,639.04,0.31296945]
[1746827117472,0.26015933,640.41,639.04,0.31296945]
[1746827117675,0.26015933,640.41,639.05,0.2873207]
[1746827117975,0.26015933,640.4,639.05,0.2873207]
[1746827118273,0.26015933,640.4,639.06,0.31295965]
[1746827118477,0.26015933,640.39,639.06,0.31295965]
[1746827118873,0.26015933,640.38,639.06,0.31295965]
[1746827119178,0.26015933,640.37,639.06,0.31295965]
[1746827119579,0.26015933,640.36,639.06,0.31295965]
[1746827120078,0.26015933,640.35,639.06,0.31295965]
[1746827120280,0.53217034,640.35,639.06,0.31295965]
[1746827120478,0.26015933,640.34,639.06,0.31295965]
[1746827120874,0.26015933,640.33,639.06,0.31295965]
[1746827121080,0.26015933,640.32,639.06,0.31295965]
[1746827121574,0.26015933,640.31,639.06,0.31295965]
[1746827121979,0.26015933,640.34,639.06,0.31295965]
[1746827122275,0.26015933,640.33,639.06,0.31295965]
[1746827123080,0.53215864,640.32,639.06,0.31295965]
[1746827123483,0.26015933,640.31,639.06,0.31295965]
[1746827123878,0.26015933,640.3,639.06,0.31295965]
[1746827124282,0.26015933,640.29,639.06,0.31295965]
[1746827124478,0.26015933,640.31,639.06,0.31295965]
[1746827125978,0.27200994,640.3,639.06,0.31295965]
[1746827126586,0.26015933,640.29,639.06,0.31295965]
[1746827128884,0.26015933,640.48,639.06,0.31295965]
[1746827129178,0.27202376,640.28,639.06,0.31295965]
[1746827129581,0.26015933,640.27,639.06,0.31295965]
[1746827129779,0.26015933,640.46,639.06,0.31295965]
[1746827130785,0.27200994,640.45,639.06,0.31295965]